[Event "*** Titled Tuesday Blitz"]
[Site "Chess.com"]
[Date "2020.02.04"]
[Round "5"]
[White "cottage_cheese"]
[Black "heyiampotato"]
[Result "0-1"]
[WhiteElo "2257"]
[BlackElo "2455"]
[TimeControl "180+2"]
[EndTime "14:05:48 PST"]
[Termination "heyiampotato won by resignation"]

1. e4 {[%clk 0:03:00.3]} 1... c5 {[%clk 0:03:00]} 2. Nf3 {[%clk 0:03:01]} 2...
d6 {[%clk 0:03:01.6]} 3. d4 {[%clk 0:03:01.7]} 3... cxd4 {[%clk 0:03:03.5]} 4.
Nxd4 {[%clk 0:03:03.6]} 4... Nf6 {[%clk 0:03:04.9]} 5. Nc3 {[%clk 0:03:04.1]}
5... a6 {[%clk 0:03:06.1]} 6. h3 {[%clk 0:03:04.9]} 6... e5 {[%clk 0:03:06.8]}
7. Nde2 {[%clk 0:03:06]} 7... h5 {[%clk 0:03:07.5]} 8. g3 {[%clk 0:03:07.3]}
8... Be6 {[%clk 0:03:01.1]} 9. Bg2 {[%clk 0:03:08.2]} 9... Be7 {[%clk
0:03:01.9]} 10. O-O {[%clk 0:03:07.2]} 10... Nbd7 {[%clk 0:03:02.9]} 11. b3
{[%clk 0:03:06.4]} 11... Rc8 {[%clk 0:03:02.4]} 12. Bb2 {[%clk 0:03:06.6]} 12...
b5 {[%clk 0:03:02.7]} 13. Kh2 {[%clk 0:02:57.8]} 13... Qc7 {[%clk 0:02:35.2]}
14. Rc1 {[%clk 0:02:54.8]} 14... Nb6 {[%clk 0:02:27.9]} 15. Nd5 {[%clk
0:02:19.6]} 15... Nbxd5 {[%clk 0:02:10.8]} 16. exd5 {[%clk 0:02:19.7]} 16... Bf5
{[%clk 0:02:12.1]} 17. c4 {[%clk 0:01:48.4]} 17... Qa5 {[%clk 0:01:58.2]} 18. f4
{[%clk 0:01:08.7]} 18... Qxa2 {[%clk 0:01:14.8]} 19. fxe5 {[%clk 0:01:08.2]}
19... dxe5 {[%clk 0:00:57.1]} 20. Bxe5 {[%clk 0:01:02.7]} 20... Bg4 {[%clk
0:00:49.3]} 21. Bxf6 {[%clk 0:00:51.3]} 21... Bxe2 {[%clk 0:00:43.2]} 22. Qe1
{[%clk 0:00:44.7]} 22... Bxf6 {[%clk 0:00:39.3]} 23. Rf2 {[%clk 0:00:37.8]}
23... O-O {[%clk 0:00:40.1]} 24. Rxe2 {[%clk 0:00:33.1]} 24... Qxb3 {[%clk
0:00:41.4]} 25. c5 {[%clk 0:00:31.9]} 25... h4 {[%clk 0:00:35]} 26. gxh4 {[%clk
0:00:16.8]} 26... Qa4 {[%clk 0:00:22.1]} 27. Re4 {[%clk 0:00:14.5]} 27... Qa3
{[%clk 0:00:20]} 28. Qe3 {[%clk 0:00:11.6]} 28... Qb2 {[%clk 0:00:17.7]} 29. Rf4
{[%clk 0:00:07.7]} 29... Be5 {[%clk 0:00:17]} 30. Qf3 {[%clk 0:00:05.8]} 30...
Qxc1 {[%clk 0:00:15.5]} 0-1

[Event "*** Titled Tuesday Blitz"]
[Site "Chess.com"]
[Date "2020.02.04"]
[Round "5"]
[White "chessdjw"]
[Black "Terao90"]
[Result "1/2-1/2"]
[WhiteElo "2583"]
[BlackElo "2427"]
[TimeControl "180+2"]
[EndTime "14:05:57 PST"]
[Termination "Game drawn by agreement"]

1. c4 {[%clk 0:03:01.9]} 1... c5 {[%clk 0:02:57.8]} 2. Nf3 {[%clk 0:03:01.3]}
2... Nf6 {[%clk 0:02:58.3]} 3. Nc3 {[%clk 0:02:59.7]} 3... Nc6 {[%clk
0:02:59.8]} 4. e3 {[%clk 0:03:00.1]} 4... d5 {[%clk 0:02:55]} 5. cxd5 {[%clk
0:02:59.1]} 5... Nxd5 {[%clk 0:02:56.9]} 6. Bb5 {[%clk 0:02:53.8]} 6... Nxc3
{[%clk 0:02:54.4]} 7. bxc3 {[%clk 0:02:53.8]} 7... Bd7 {[%clk 0:02:54.6]} 8. O-O
{[%clk 0:02:51]} 8... e6 {[%clk 0:02:54.7]} 9. d4 {[%clk 0:02:51.7]} 9... a6
{[%clk 0:02:54.5]} 10. Bd3 {[%clk 0:02:52.3]} 10... Be7 {[%clk 0:02:54]} 11. e4
{[%clk 0:02:47.3]} 11... cxd4 {[%clk 0:02:49.8]} 12. cxd4 {[%clk 0:02:48.2]}
12... O-O {[%clk 0:02:39.9]} 13. a3 {[%clk 0:02:45.6]} 13... Bf6 {[%clk
0:02:36.7]} 14. Be3 {[%clk 0:02:39.8]} 14... Rc8 {[%clk 0:02:32.4]} 15. e5
{[%clk 0:02:34]} 15... Be7 {[%clk 0:02:32.7]} 16. Qb1 {[%clk 0:02:35]} 16... h6
{[%clk 0:02:17.1]} 17. Qxb7 {[%clk 0:02:34.6]} 17... Rb8 {[%clk 0:02:02.4]} 18.
Qxa6 {[%clk 0:02:35.7]} 18... Ra8 {[%clk 0:02:03.7]} 19. Qc4 {[%clk 0:02:31.4]}
19... Rxa3 {[%clk 0:02:04.1]} 20. Rxa3 {[%clk 0:02:31.1]} 20... Bxa3 {[%clk
0:02:06]} 21. Bb1 {[%clk 0:01:59.1]} 21... Nb4 {[%clk 0:01:59]} 22. Nd2 {[%clk
0:01:26.7]} 22... Bc6 {[%clk 0:01:52.9]} 23. Qb3 {[%clk 0:01:18.7]} 23... Qd5
{[%clk 0:01:50.1]} 24. Qxd5 {[%clk 0:01:18.5]} 24... Bxd5 {[%clk 0:01:52]} 25.
Ne4 {[%clk 0:01:16.2]} 25... Rc8 {[%clk 0:01:46.5]} 26. Nc5 {[%clk 0:01:11]}
26... Nc6 {[%clk 0:01:39.5]} 27. Bd3 {[%clk 0:01:03.9]} 27... Bxc5 {[%clk
0:01:27.7]} 28. dxc5 {[%clk 0:01:05.8]} 28... Nxe5 {[%clk 0:01:27.8]} 29. Be2
{[%clk 0:01:06.5]} 29... Bc4 {[%clk 0:01:25.8]} 30. Re1 {[%clk 0:00:49.9]} 30...
Bxe2 {[%clk 0:01:19.8]} 31. Rxe2 {[%clk 0:00:51]} 31... Nc4 {[%clk 0:01:11.8]}
32. Bd4 {[%clk 0:00:51.7]} 32... e5 {[%clk 0:01:11.3]} 33. Bxe5 {[%clk
0:00:36.8]} 33... Rxc5 {[%clk 0:01:11.5]} 34. Bg3 {[%clk 0:00:32.6]} 34... Rd5
{[%clk 0:01:10.6]} 35. h3 {[%clk 0:00:32.6]} 35... Rd2 {[%clk 0:01:06.7]} 36.
Re8+ {[%clk 0:00:27.3]} 36... Kh7 {[%clk 0:01:06.7]} 37. Re7 {[%clk 0:00:28]}
37... f6 {[%clk 0:01:04.7]} 38. Kh2 {[%clk 0:00:22.9]} 38... Rd1 {[%clk
0:01:04]} 39. Rc7 {[%clk 0:00:20]} 39... Nd2 {[%clk 0:01:04.3]} 40. h4 {[%clk
0:00:20.1]} 40... Nf1+ {[%clk 0:01:02.1]} 41. Kh3 {[%clk 0:00:21.6]} 41... Nxg3
{[%clk 0:01:02.5]} 42. Kxg3 {[%clk 0:00:23.1]} 42... h5 {[%clk 0:01:02]} 43. f3
{[%clk 0:00:24.3]} 43... Rd5 {[%clk 0:01:02.2]} 44. Rc6 {[%clk 0:00:25.3]} 44...
Kg6 {[%clk 0:01:02.7]} 45. Ra6 {[%clk 0:00:26.6]} 45... Re5 {[%clk 0:01:02.4]}
46. Ra4 {[%clk 0:00:28.1]} 46... Rd5 {[%clk 0:01:03.2]} 47. Rb4 {[%clk
0:00:29.4]} 47... Re5 {[%clk 0:01:04.4]} 48. Rc4 {[%clk 0:00:30.8]} 48... Rd5
{[%clk 0:01:05.5]} 49. Re4 {[%clk 0:00:32.2]} 49... Rf5 {[%clk 0:01:04.9]} 50.
Rd4 {[%clk 0:00:33.1]} 50... Re5 {[%clk 0:01:05.3]} 51. Kh3 {[%clk 0:00:33.6]}
1/2-1/2

[Event "*** Titled Tuesday Blitz"]
[Site "Chess.com"]
[Date "2020.02.04"]
[Round "5"]
[White "francyIM"]
[Black "Andro2"]
[Result "0-1"]
[WhiteElo "2587"]
[BlackElo "2447"]
[TimeControl "180+2"]
[EndTime "14:06:02 PST"]
[Termination "Andro2 won by resignation"]

1. d4 {[%clk 0:03:01.9]} 1... Nf6 {[%clk 0:02:58.6]} 2. c4 {[%clk 0:03:02.9]}
2... c5 {[%clk 0:02:59.5]} 3. Nf3 {[%clk 0:03:02.6]} 3... cxd4 {[%clk
0:02:58.6]} 4. Nxd4 {[%clk 0:03:04.5]} 4... d6 {[%clk 0:02:58.7]} 5. g3 {[%clk
0:03:04.3]} 5... Bd7 {[%clk 0:02:55.9]} 6. Bg2 {[%clk 0:03:04.7]} 6... Nc6
{[%clk 0:02:57.1]} 7. O-O {[%clk 0:03:05.4]} 7... g6 {[%clk 0:02:57.5]} 8. Nc3
{[%clk 0:03:06]} 8... Bg7 {[%clk 0:02:58.7]} 9. Nc2 {[%clk 0:03:06.2]} 9... O-O
{[%clk 0:02:58.9]} 10. b3 {[%clk 0:03:06.4]} 10... Rc8 {[%clk 0:02:56]} 11. Bb2
{[%clk 0:03:06.9]} 11... a6 {[%clk 0:02:56.5]} 12. Nd5 {[%clk 0:03:07.5]} 12...
Nxd5 {[%clk 0:02:31.6]} 13. Bxg7 {[%clk 0:03:09.4]} 13... Kxg7 {[%clk
0:02:30.6]} 14. cxd5 {[%clk 0:03:10.6]} 14... Ne5 {[%clk 0:02:22.5]} 15. Nd4
{[%clk 0:03:04.7]} 15... Qb6 {[%clk 0:02:17.8]} 16. Qd2 {[%clk 0:03:04.6]} 16...
Rc5 {[%clk 0:02:09.8]} 17. Rac1 {[%clk 0:03:04.3]} 17... Rfc8 {[%clk 0:02:09.9]}
18. Rxc5 {[%clk 0:03:05.2]} 18... Qxc5 {[%clk 0:02:10.9]} 19. h3 {[%clk
0:03:05.8]} 19... Qc3 {[%clk 0:02:10.5]} 20. Qxc3 {[%clk 0:03:04.4]} 20... Rxc3
{[%clk 0:02:11.1]} 21. f4 {[%clk 0:03:06]} 21... Rxg3 {[%clk 0:01:55.4]} 22. Kh2
{[%clk 0:03:05]} 22... Re3 {[%clk 0:01:52.6]} 23. Rf2 {[%clk 0:03:00.9]} 23...
Nd3 {[%clk 0:01:15.5]} 24. exd3 {[%clk 0:02:49.1]} 24... Rxd3 {[%clk 0:01:15.9]}
25. Nc2 {[%clk 0:02:48.9]} 25... a5 {[%clk 0:01:14.5]} 26. Ne1 {[%clk
0:02:43.6]} 26... Rd1 {[%clk 0:01:11.5]} 27. Nc2 {[%clk 0:02:44.1]} 27... a4
{[%clk 0:01:01.4]} 28. bxa4 {[%clk 0:02:34.5]} 28... Bxa4 {[%clk 0:00:57.1]} 29.
Ne3 {[%clk 0:02:35.7]} 29... Rd3 {[%clk 0:00:55.3]} 30. Nc4 {[%clk 0:02:36.5]}
30... Bb5 {[%clk 0:00:51.2]} 31. Nb6 {[%clk 0:02:35.5]} 31... Rc3 {[%clk
0:00:47.2]} 32. Rb2 {[%clk 0:02:32.9]} 32... Ba6 {[%clk 0:00:46.8]} 33. Kg1
{[%clk 0:02:28.6]} 33... Rc1+ {[%clk 0:00:42.1]} 34. Kf2 {[%clk 0:02:28.3]}
34... Rc7 {[%clk 0:00:41]} 35. Bf1 {[%clk 0:02:28.2]} 35... Bxf1 {[%clk
0:00:40.1]} 36. Kxf1 {[%clk 0:02:30.1]} 36... Kf6 {[%clk 0:00:41.6]} 37. Ke2
{[%clk 0:02:28.2]} 37... Kf5 {[%clk 0:00:42.5]} 38. Kd3 {[%clk 0:02:29]} 38...
f6 {[%clk 0:00:39]} 39. Nc4 {[%clk 0:02:27.8]} 39... Kxf4 {[%clk 0:00:37.6]} 40.
Kd4 {[%clk 0:02:26.4]} 40... Kg3 {[%clk 0:00:30.8]} 41. a4 {[%clk 0:02:26.4]}
41... Kxh3 {[%clk 0:00:29.7]} 42. Ne3 {[%clk 0:02:24.3]} 42... f5 {[%clk
0:00:28]} 43. Rb3 {[%clk 0:02:20.6]} 43... Kh4 {[%clk 0:00:25.7]} 44. Rb1 {[%clk
0:02:15.8]} 44... h5 {[%clk 0:00:23.5]} 45. Rg1 {[%clk 0:02:12.3]} 45... f4
{[%clk 0:00:21.7]} 46. Nf1 {[%clk 0:02:06.3]} 46... g5 {[%clk 0:00:19.3]} 47.
Nd2 {[%clk 0:02:06.9]} 47... g4 {[%clk 0:00:19.8]} 48. Ne4 {[%clk 0:02:08.1]}
48... g3 {[%clk 0:00:18.8]} 49. Kd3 {[%clk 0:01:53.9]} 49... Kg4 {[%clk
0:00:17.9]} 50. Nf2+ {[%clk 0:01:52.2]} 50... Kf5 {[%clk 0:00:15]} 51. Nh3
{[%clk 0:01:51.9]} 51... Rc5 {[%clk 0:00:15.4]} 52. Rf1 {[%clk 0:01:45.3]} 52...
Rxd5+ {[%clk 0:00:16.1]} 53. Kc4 {[%clk 0:01:45.9]} 53... Rc5+ {[%clk
0:00:17.3]} 54. Kd3 {[%clk 0:01:45.1]} 54... e5 {[%clk 0:00:18.3]} 55. Rh1
{[%clk 0:01:42.7]} 55... Kg4 {[%clk 0:00:18.2]} 56. Ng1 {[%clk 0:01:42.7]} 56...
Rc1 {[%clk 0:00:15.8]} 0-1

[Event "*** Titled Tuesday Blitz"]
[Site "Chess.com"]
[Date "2020.02.04"]
[Round "5"]
[White "kingofthenil"]
[Black "Valk4"]
[Result "1-0"]
[WhiteElo "2484"]
[BlackElo "2276"]
[TimeControl "180+2"]
[EndTime "14:06:08 PST"]
[Termination "kingofthenil won by resignation"]

1. d4 {[%clk 0:03:01.9]} 1... Nf6 {[%clk 0:03:00.8]} 2. c4 {[%clk 0:03:01.9]}
2... e6 {[%clk 0:03:02.2]} 3. Nc3 {[%clk 0:03:03.1]} 3... Bb4 {[%clk 0:03:03.2]}
4. a3 {[%clk 0:03:04.6]} 4... Bxc3+ {[%clk 0:03:03.6]} 5. bxc3 {[%clk
0:03:06.5]} 5... O-O {[%clk 0:03:03.5]} 6. f3 {[%clk 0:03:04.2]} 6... b6 {[%clk
0:02:53.8]} 7. e4 {[%clk 0:03:05.2]} 7... d5 {[%clk 0:02:54]} 8. cxd5 {[%clk
0:03:05.9]} 8... exd5 {[%clk 0:02:53.4]} 9. e5 {[%clk 0:03:07.8]} 9... Nfd7
{[%clk 0:02:51.8]} 10. Bd3 {[%clk 0:03:01.8]} 10... f6 {[%clk 0:02:36.8]} 11.
exf6 {[%clk 0:02:40.2]} 11... Nxf6 {[%clk 0:02:37.2]} 12. Ne2 {[%clk 0:02:42.1]}
12... Ba6 {[%clk 0:02:28.3]} 13. Bxa6 {[%clk 0:02:41.6]} 13... Nxa6 {[%clk
0:02:29.3]} 14. O-O {[%clk 0:02:43.5]} 14... Qd7 {[%clk 0:02:08.5]} 15. Qd3
{[%clk 0:02:41]} 15... Nb8 {[%clk 0:01:58.6]} 16. Bf4 {[%clk 0:02:36.2]} 16...
Nc6 {[%clk 0:01:58.5]} 17. g4 {[%clk 0:02:33.7]} 17... Rae8 {[%clk 0:01:57.2]}
18. Ng3 {[%clk 0:02:30.2]} 18... Ne7 {[%clk 0:01:54.5]} 19. h3 {[%clk
0:02:18.5]} 19... Ng6 {[%clk 0:01:49.9]} 20. Bd2 {[%clk 0:02:19.1]} 20... Qd6
{[%clk 0:01:47.3]} 21. Nf5 {[%clk 0:02:17.7]} 21... Qd8 {[%clk 0:01:39.9]} 22.
a4 {[%clk 0:02:15.1]} 22... Ne7 {[%clk 0:01:40.3]} 23. Ne3 {[%clk 0:02:14.8]}
23... Ng6 {[%clk 0:01:35]} 24. Nf5 {[%clk 0:02:15.1]} 24... Ne7 {[%clk
0:01:35.6]} 25. Ng3 {[%clk 0:02:16.2]} 25... Qd6 {[%clk 0:01:34.9]} 26. f4
{[%clk 0:02:03.3]} 26... Ng6 {[%clk 0:01:32.1]} 27. f5 {[%clk 0:02:04.2]} 27...
Ne4 {[%clk 0:01:05.1]} 28. Nh5 {[%clk 0:00:32.3]} 28... Ne7 {[%clk 0:00:52.2]}
29. Bf4 {[%clk 0:00:31.9]} 29... Qc6 {[%clk 0:00:47]} 30. Be5 {[%clk 0:00:28.2]}
30... Rf7 {[%clk 0:00:20.7]} 31. Nf4 {[%clk 0:00:20.9]} 31... Qxc3 {[%clk
0:00:18.7]} 32. Qxc3 {[%clk 0:00:21.9]} 32... Nxc3 {[%clk 0:00:20.6]} 33. Rfc1
{[%clk 0:00:23.5]} 33... Ne4 {[%clk 0:00:17.7]} 34. Rxc7 {[%clk 0:00:24.9]}
34... Nc8 {[%clk 0:00:17.4]} 35. Rac1 {[%clk 0:00:21.6]} 35... Rxc7 {[%clk
0:00:16.8]} 36. Rxc7 {[%clk 0:00:23.5]} 36... Rd8 {[%clk 0:00:09.7]} 37. Rxg7+
{[%clk 0:00:22.9]} 1-0

[Event "*** Titled Tuesday Blitz"]
[Site "Chess.com"]
[Date "2020.02.04"]
[Round "5"]
[White "andrzej"]
[Black "secretsuperstar7"]
[Result "1-0"]
[WhiteElo "2345"]
[BlackElo "2216"]
[TimeControl "180+2"]
[EndTime "14:06:10 PST"]
[Termination "andrzej won by resignation"]

1. d4 {[%clk 0:03:01.9]} 1... Nf6 {[%clk 0:02:58.8]} 2. c4 {[%clk 0:03:03.3]}
2... e6 {[%clk 0:02:58.6]} 3. Nf3 {[%clk 0:03:04.6]} 3... d5 {[%clk 0:02:51.8]}
4. g3 {[%clk 0:03:04]} 4... dxc4 {[%clk 0:02:41.4]} 5. Bg2 {[%clk 0:03:04.7]}
5... c5 {[%clk 0:02:40]} 6. O-O {[%clk 0:02:50.2]} 6... Nc6 {[%clk 0:02:33.7]}
7. dxc5 {[%clk 0:02:48.1]} 7... Qxd1 {[%clk 0:02:32.3]} 8. Rxd1 {[%clk 0:02:50]}
8... Bxc5 {[%clk 0:02:32.5]} 9. Nbd2 {[%clk 0:02:51.6]} 9... c3 {[%clk
0:02:29.6]} 10. bxc3 {[%clk 0:02:53.5]} 10... O-O {[%clk 0:02:29.4]} 11. Nb3
{[%clk 0:02:54.4]} 11... Bb6 {[%clk 0:02:28.6]} 12. c4 {[%clk 0:02:55.8]} 12...
e5 {[%clk 0:02:26.4]} 13. Bb2 {[%clk 0:02:48.2]} 13... Be6 {[%clk 0:02:14.4]}
14. Nxe5 {[%clk 0:02:24.2]} 14... Nxe5 {[%clk 0:02:10.4]} 15. Bxe5 {[%clk
0:02:26.1]} 15... Bxf2+ {[%clk 0:02:09.8]} 16. Kxf2 {[%clk 0:02:23.7]} 16...
Ng4+ {[%clk 0:02:10.2]} 17. Kg1 {[%clk 0:02:20.4]} 17... Nxe5 {[%clk 0:02:10.7]}
18. Bxb7 {[%clk 0:02:19.9]} 18... Rab8 {[%clk 0:02:07.8]} 19. Bd5 {[%clk
0:02:20]} 19... Nxc4 {[%clk 0:02:03.6]} 20. Bxe6 {[%clk 0:02:19.3]} 20... fxe6
{[%clk 0:02:04.5]} 21. Rd7 {[%clk 0:02:18]} 21... Rf7 {[%clk 0:01:58.2]} 22.
Rad1 {[%clk 0:02:13.9]} 22... Ne3 {[%clk 0:01:52.4]} 23. Rxf7 {[%clk 0:02:01.2]}
23... Kxf7 {[%clk 0:01:50.5]} 24. Rd7+ {[%clk 0:02:01.8]} 24... Kg6 {[%clk
0:01:48.6]} 25. Rxa7 {[%clk 0:02:01.7]} 25... Rf8 {[%clk 0:01:47.9]} 26. h4
{[%clk 0:01:45.8]} 26... Rf1+ {[%clk 0:01:47.1]} 27. Kh2 {[%clk 0:01:46.9]}
27... Ng4+ {[%clk 0:01:33.9]} 28. Kg2 {[%clk 0:01:44.9]} 28... Rf2+ {[%clk
0:01:32.2]} 29. Kg1 {[%clk 0:01:45.7]} 29... Rxe2 {[%clk 0:01:31.4]} 30. Nd4
{[%clk 0:01:42.9]} 30... Re4 {[%clk 0:01:22]} 31. Nf3 {[%clk 0:01:13.1]} 31...
Re3 {[%clk 0:01:19.1]} 32. Kg2 {[%clk 0:01:10.1]} 32... Re2+ {[%clk 0:01:20]}
33. Kg1 {[%clk 0:01:11]} 33... Re3 {[%clk 0:01:20.8]} 34. Kg2 {[%clk 0:01:10.7]}
34... e5 {[%clk 0:01:03.3]} 35. a4 {[%clk 0:00:58.2]} 35... Re2+ {[%clk
0:01:01.8]} 36. Kg1 {[%clk 0:00:58.1]} 36... e4 {[%clk 0:01:02.1]} 37. Ra6+
{[%clk 0:00:48.4]} 37... Kf7 {[%clk 0:01:00.8]} 38. Ng5+ {[%clk 0:00:48.9]}
38... Ke7 {[%clk 0:01:01.8]} 39. Re6+ {[%clk 0:00:45.8]} 39... Kd7 {[%clk
0:00:58.9]} 40. Rxe4 {[%clk 0:00:47.7]} 40... Rxe4 {[%clk 0:00:58.5]} 41. Nxe4
{[%clk 0:00:48.4]} 41... Kc6 {[%clk 0:00:54.2]} 42. Kg2 {[%clk 0:00:43.2]} 42...
Kb6 {[%clk 0:00:53.1]} 43. Kf3 {[%clk 0:00:44]} 43... Ne5+ {[%clk 0:00:52.5]}
44. Kf4 {[%clk 0:00:44.9]} 44... Nd3+ {[%clk 0:00:53.3]} 45. Kf5 {[%clk
0:00:45.3]} 45... Ka5 {[%clk 0:00:54.3]} 46. Ng5 {[%clk 0:00:42.6]} 46... h6
{[%clk 0:00:51.3]} 47. Ne6 {[%clk 0:00:43.4]} 47... g5 {[%clk 0:00:51.8]} 48. h5
{[%clk 0:00:44.3]} 48... Kxa4 {[%clk 0:00:47.5]} 49. Nxg5 {[%clk 0:00:45.1]}
49... hxg5 {[%clk 0:00:47.7]} 50. Kxg5 {[%clk 0:00:47]} 50... Ne5 {[%clk
0:00:47]} 51. h6 {[%clk 0:00:46.5]} 51... Nf7+ {[%clk 0:00:46.9]} 52. Kg6 {[%clk
0:00:47.8]} 52... Nxh6 {[%clk 0:00:47.5]} 53. Kxh6 {[%clk 0:00:48.7]} 53... Kb5
{[%clk 0:00:49.2]} 54. g4 {[%clk 0:00:50]} 54... Kc6 {[%clk 0:00:50.7]} 55. g5
{[%clk 0:00:51.6]} 55... Kd7 {[%clk 0:00:52.2]} 56. g6 {[%clk 0:00:53.2]} 56...
Ke6 {[%clk 0:00:53.3]} 57. g7 {[%clk 0:00:53.7]} 57... Kf7 {[%clk 0:00:54.4]}
58. Kh7 {[%clk 0:00:55.3]} 1-0

[Event "*** Titled Tuesday Blitz"]
[Site "Chess.com"]
[Date "2020.02.04"]
[Round "5"]
[White "enriquetejedor"]
[Black "EugeneRougon"]
[Result "1-0"]
[WhiteElo "2505"]
[BlackElo "2712"]
[TimeControl "180+2"]
[EndTime "14:06:15 PST"]
[Termination "enriquetejedor won by resignation"]

1. d4 {[%clk 0:03:01.5]} 1... d5 {[%clk 0:03:00.3]} 2. c4 {[%clk 0:03:00.1]}
2... c6 {[%clk 0:03:01.5]} 3. Nf3 {[%clk 0:02:43.4]} 3... Nf6 {[%clk 0:03:02.4]}
4. Nc3 {[%clk 0:02:40.9]} 4... e6 {[%clk 0:03:02.7]} 5. Bg5 {[%clk 0:02:36]}
5... Nbd7 {[%clk 0:03:03.2]} 6. e3 {[%clk 0:02:36.8]} 6... Qa5 {[%clk
0:03:02.7]} 7. Nd2 {[%clk 0:02:32.5]} 7... Bb4 {[%clk 0:02:54.5]} 8. Rc1 {[%clk
0:02:11.2]} 8... c5 {[%clk 0:02:29.3]} 9. a3 {[%clk 0:01:49.3]} 9... Bxc3 {[%clk
0:02:28.5]} 10. bxc3 {[%clk 0:01:50.6]} 10... cxd4 {[%clk 0:02:16.7]} 11. cxd4
{[%clk 0:01:45.9]} 11... Ne4 {[%clk 0:02:16.8]} 12. Bf4 {[%clk 0:01:42.8]} 12...
O-O {[%clk 0:01:44.8]} 13. Bd3 {[%clk 0:01:38.7]} 13... Qxa3 {[%clk 0:01:17.8]}
14. Nxe4 {[%clk 0:01:36.5]} 14... dxe4 {[%clk 0:01:19.1]} 15. Bxe4 {[%clk
0:01:38]} 15... Nf6 {[%clk 0:01:18.2]} 16. Bf3 {[%clk 0:01:39.1]} 16... Bd7
{[%clk 0:01:09.5]} 17. O-O {[%clk 0:01:33.4]} 17... Bc6 {[%clk 0:01:10.4]} 18.
d5 {[%clk 0:01:09.9]} 18... exd5 {[%clk 0:01:10.3]} 19. cxd5 {[%clk 0:01:10.9]}
19... Bd7 {[%clk 0:00:19]} 20. e4 {[%clk 0:01:08.3]} 20... h6 {[%clk 0:00:14.6]}
21. e5 {[%clk 0:01:09.2]} 21... Nh7 {[%clk 0:00:15.8]} 22. Qd4 {[%clk
0:01:05.6]} 22... Rfc8 {[%clk 0:00:15.3]} 23. h4 {[%clk 0:01:05.5]} 23... Nf8
{[%clk 0:00:14.8]} 24. Rb1 {[%clk 0:01:03.2]} 24... b6 {[%clk 0:00:11.6]} 25. e6
{[%clk 0:00:51]} 25... fxe6 {[%clk 0:00:12.1]} 26. dxe6 {[%clk 0:00:51.7]} 26...
Bc6 {[%clk 0:00:09.9]} 27. Bd6 {[%clk 0:00:49.5]} 27... Qa5 {[%clk 0:00:09.9]}
28. e7 {[%clk 0:00:44.9]} 28... Ne6 {[%clk 0:00:07.2]} 29. Qc4 {[%clk
0:00:41.9]} 29... Bd7 {[%clk 0:00:08.4]} 30. Qb3 {[%clk 0:00:30]} 30... Kh7
{[%clk 0:00:07.1]} 31. Be4+ {[%clk 0:00:29.3]} 31... Kh8 {[%clk 0:00:08]} 32.
Bxa8 {[%clk 0:00:27.1]} 32... Rxa8 {[%clk 0:00:09.9]} 33. Rfe1 {[%clk
0:00:27.4]} 33... Nd4 {[%clk 0:00:09.8]} 34. Qf7 {[%clk 0:00:25.7]} 34... Qa4
{[%clk 0:00:10.8]} 35. Qf8+ {[%clk 0:00:24.3]} 35... Kh7 {[%clk 0:00:10.5]} 36.
Qxa8 {[%clk 0:00:22.6]} 36... Bc6 {[%clk 0:00:09.6]} 37. e8=Q {[%clk 0:00:19.5]}
37... Nf3+ {[%clk 0:00:08.5]} 38. gxf3 {[%clk 0:00:17.8]} 38... Bxe8 {[%clk
0:00:07.6]} 39. Qxe8 {[%clk 0:00:17.7]} 39... Qxh4 {[%clk 0:00:09.5]} 40. Qe4+
{[%clk 0:00:16.3]} 40... Qxe4 {[%clk 0:00:11.4]} 41. fxe4 {[%clk 0:00:15.2]} 1-0

[Event "*** Titled Tuesday Blitz"]
[Site "Chess.com"]
[Date "2020.02.04"]
[Round "5"]
[White "Zq1"]
[Black "iturrizaga"]
[Result "0-1"]
[WhiteElo "2545"]
[BlackElo "2856"]
[TimeControl "180+2"]
[EndTime "14:06:18 PST"]
[Termination "iturrizaga won by resignation"]

1. d4 {[%clk 0:03:01.9]} 1... Nf6 {[%clk 0:03:00.6]} 2. c4 {[%clk 0:03:02.8]}
2... e6 {[%clk 0:03:00.6]} 3. Nc3 {[%clk 0:03:03.8]} 3... Bb4 {[%clk 0:02:59.9]}
4. e3 {[%clk 0:03:04.5]} 4... O-O {[%clk 0:02:58.5]} 5. Bd3 {[%clk 0:03:04.4]}
5... d5 {[%clk 0:02:57.8]} 6. cxd5 {[%clk 0:03:04.6]} 6... Qxd5 {[%clk
0:02:50.4]} 7. Nf3 {[%clk 0:03:02.8]} 7... Bxc3+ {[%clk 0:02:41.7]} 8. bxc3
{[%clk 0:03:03.1]} 8... b6 {[%clk 0:02:43.3]} 9. c4 {[%clk 0:02:43.4]} 9... Qh5
{[%clk 0:02:40]} 10. Ne5 {[%clk 0:02:37.1]} 10... Qxd1+ {[%clk 0:02:35.1]} 11.
Kxd1 {[%clk 0:02:37.8]} 11... Bb7 {[%clk 0:02:37]} 12. f3 {[%clk 0:02:38.3]}
12... Nbd7 {[%clk 0:02:27]} 13. Nxd7 {[%clk 0:02:38.1]} 13... Nxd7 {[%clk
0:02:28.9]} 14. a4 {[%clk 0:02:37.9]} 14... Rfd8 {[%clk 0:02:19.8]} 15. a5
{[%clk 0:02:27.2]} 15... Ne5 {[%clk 0:01:59.1]} 16. Ke2 {[%clk 0:02:14.9]} 16...
Nxd3 {[%clk 0:01:31.6]} 17. Kxd3 {[%clk 0:02:15.8]} 17... e5 {[%clk 0:01:26]}
18. Bb2 {[%clk 0:02:04.4]} 18... exd4 {[%clk 0:01:22.7]} 19. exd4 {[%clk
0:02:04.5]} 19... Rab8 {[%clk 0:01:14.8]} 20. axb6 {[%clk 0:02:00.6]} 20... axb6
{[%clk 0:01:13.9]} 21. Rhe1 {[%clk 0:01:56.6]} 21... Rd7 {[%clk 0:01:05.6]} 22.
Kc2 {[%clk 0:01:44]} 22... f6 {[%clk 0:01:02.2]} 23. Ra7 {[%clk 0:01:31.7]}
23... Kf7 {[%clk 0:00:57.8]} 24. d5 {[%clk 0:01:27]} 24... b5 {[%clk 0:00:55.7]}
25. cxb5 {[%clk 0:01:19]} 25... Bxd5 {[%clk 0:00:54.5]} 26. Ra5 {[%clk
0:01:09.7]} 26... Bc4 {[%clk 0:00:50.3]} 27. Ba3 {[%clk 0:01:04.2]} 27... Bxb5
{[%clk 0:00:45.3]} 28. Re3 {[%clk 0:00:56.8]} 28... Bc4 {[%clk 0:00:22]} 29. Rc5
{[%clk 0:00:48.8]} 29... Bd5 {[%clk 0:00:21.6]} 30. Ra5 {[%clk 0:00:35]} 30...
c6 {[%clk 0:00:20]} 31. Bc5 {[%clk 0:00:34.4]} 31... Rbb7 {[%clk 0:00:18.8]} 32.
Ra8 {[%clk 0:00:30.3]} 32... h5 {[%clk 0:00:18.3]} 33. h4 {[%clk 0:00:28.6]}
33... Kg6 {[%clk 0:00:16.4]} 34. Rae8 {[%clk 0:00:24.6]} 34... Rb5 {[%clk
0:00:16.8]} 35. Bf8 {[%clk 0:00:22.7]} 35... Bf7 {[%clk 0:00:10.3]} 36. R8e7
{[%clk 0:00:20.9]} 36... Rc5+ {[%clk 0:00:11.1]} 37. Kb2 {[%clk 0:00:19.9]}
37... Rd2+ {[%clk 0:00:11.2]} 38. Ka3 {[%clk 0:00:17.6]} 38... Rxg2 {[%clk
0:00:06.1]} 39. Rxf7 {[%clk 0:00:15.8]} 39... Ra5+ {[%clk 0:00:07.1]} 40. Kb4
{[%clk 0:00:16.9]} 40... Rb5+ {[%clk 0:00:09]} 41. Kc4 {[%clk 0:00:17.9]} 41...
Kxf7 {[%clk 0:00:10.6]} 42. Bd6 {[%clk 0:00:17.2]} 42... Rc2+ {[%clk 0:00:10.3]}
43. Kd3 {[%clk 0:00:15.4]} 43... Rb3+ {[%clk 0:00:10.4]} 0-1